[Event "*** Titled Tuesday Blitz"]
[Site "Chess.com"]
[Date "2018.01.02"]
[Round "2"]
[White "NormWeinstein"]
[Black "ckgchess"]
[Result "1-0"]
[WhiteElo "2319"]
[BlackElo "2481"]
[TimeControl "180+2"]
[EndTime "13:18:46 PST"]
[Termination "NormWeinstein won by resignation"]

1. e4 {[%clk 0:03:01.9]} 1... c5 {[%clk 0:02:17.1]} 2. Nf3 {[%clk 0:03:02.5]}
2... d6 {[%clk 0:02:16.1]} 3. Nc3 {[%clk 0:03:03.5]} 3... Nc6 {[%clk 0:01:26.3]}
4. d4 {[%clk 0:03:03.3]} 4... cxd4 {[%clk 0:01:28.2]} 5. Nxd4 {[%clk 0:03:04]}
5... g6 {[%clk 0:01:29.8]} 6. Be3 {[%clk 0:03:04.5]} 6... Bg7 {[%clk 0:01:30.8]}
7. Bc4 {[%clk 0:03:06]} 7... Nf6 {[%clk 0:01:31.9]} 8. h3 {[%clk 0:03:06.2]}
8... O-O {[%clk 0:01:31.1]} 9. Bb3 {[%clk 0:03:07.7]} 9... Na5 {[%clk
0:01:30.9]} 10. f3 {[%clk 0:03:08]} 10... Qc7 {[%clk 0:01:29.7]} 11. h4 {[%clk
0:03:05.6]} 11... Nc4 {[%clk 0:01:24]} 12. Bxc4 {[%clk 0:03:06.4]} 12... Qxc4
{[%clk 0:01:25.9]} 13. Qd2 {[%clk 0:03:07.9]} 13... b5 {[%clk 0:01:06.6]} 14.
Ndxb5 {[%clk 0:02:45.6]} 14... Rb8 {[%clk 0:01:02.1]} 15. b3 {[%clk 0:02:46.1]}
15... Qc6 {[%clk 0:00:50.8]} 16. Nxa7 {[%clk 0:02:44.3]} 16... Qd7 {[%clk
0:00:45.1]} 17. a4 {[%clk 0:02:37.1]} 17... Ba6 {[%clk 0:00:36.5]} 18. Nab5
{[%clk 0:02:37.8]} 18... Ne8 {[%clk 0:00:33.5]} 19. Bd4 {[%clk 0:02:37.9]} 19...
e5 {[%clk 0:00:31.8]} 20. Be3 {[%clk 0:02:38.9]} 20... Rc8 {[%clk 0:00:27.2]}
21. Nd5 {[%clk 0:02:36.3]} 21... Qc6 {[%clk 0:00:21.2]} 22. Ne7+ {[%clk
0:02:36.2]} 1-0

[Event "*** Titled Tuesday Blitz"]
[Site "Chess.com"]
[Date "2018.01.02"]
[Round "2"]
[White "walkingcreep"]
[Black "Angry_Serb"]
[Result "0-1"]
[WhiteElo "2409"]
[BlackElo "2438"]
[TimeControl "180+2"]
[EndTime "13:19:22 PST"]
[Termination "Angry_Serb won by resignation"]

1. d4 {[%clk 0:03:01.9]} 1... d5 {[%clk 0:02:54.2]} 2. c4 {[%clk 0:02:59.9]}
2... e6 {[%clk 0:02:55]} 3. Nc3 {[%clk 0:03:00.2]} 3... c5 {[%clk 0:02:56.2]} 4.
cxd5 {[%clk 0:03:01.2]} 4... exd5 {[%clk 0:02:58.1]} 5. Nf3 {[%clk 0:03:01.8]}
5... Nc6 {[%clk 0:02:59.4]} 6. dxc5 {[%clk 0:03:02.7]} 6... d4 {[%clk
0:02:59.8]} 7. Na4 {[%clk 0:03:03.7]} 7... Nf6 {[%clk 0:02:59.7]} 8. a3 {[%clk
0:03:02.3]} 8... Be7 {[%clk 0:02:59.9]} 9. b4 {[%clk 0:02:53.1]} 9... Ne4 {[%clk
0:02:50.9]} 10. g3 {[%clk 0:02:43.9]} 10... Bf6 {[%clk 0:02:45.9]} 11. Bb2
{[%clk 0:02:18.9]} 11... Bf5 {[%clk 0:02:12.3]} 12. Bg2 {[%clk 0:02:06.2]} 12...
Qd5 {[%clk 0:02:03.5]} 13. O-O {[%clk 0:02:01.9]} 13... Rd8 {[%clk 0:02:04.4]}
14. Nd2 {[%clk 0:01:54.1]} 14... O-O {[%clk 0:02:04.9]} 15. Nxe4 {[%clk
0:01:44.7]} 15... Bxe4 {[%clk 0:02:05.6]} 16. Bxe4 {[%clk 0:01:45.2]} 16... Qxe4
{[%clk 0:02:07.5]} 17. Qd3 {[%clk 0:01:46.1]} 17... Qe6 {[%clk 0:01:52.7]} 18.
Rad1 {[%clk 0:01:20.1]} 18... Rfe8 {[%clk 0:01:48.1]} 19. Rfe1 {[%clk
0:01:21.1]} 19... Ne5 {[%clk 0:01:42.2]} 20. Qb5 {[%clk 0:01:01.3]} 20... Qh3
{[%clk 0:01:39]} 21. Rxd4 {[%clk 0:00:52.7]} 21... Nf3+ {[%clk 0:01:36.1]} 22.
exf3 {[%clk 0:00:49.9]} 22... Rxe1+ {[%clk 0:01:36.9]} 0-1

[Event "*** Titled Tuesday Blitz"]
[Site "Chess.com"]
[Date "2018.01.02"]
[Round "2"]
[White "Zufi1811"]
[Black "albi1999"]
[Result "1-0"]
[WhiteElo "2401"]
[BlackElo "2326"]
[TimeControl "180+2"]
[EndTime "13:19:33 PST"]
[Termination "Zufi1811 won by resignation"]

1. e4 {[%clk 0:03:01.9]} 1... e5 {[%clk 0:01:06.5]} 2. Nf3 {[%clk 0:03:00.7]}
2... Nc6 {[%clk 0:01:05.2]} 3. Bb5 {[%clk 0:03:02.1]} 3... a6 {[%clk 0:01:05.4]}
4. Ba4 {[%clk 0:03:02]} 4... Nf6 {[%clk 0:01:03.5]} 5. O-O {[%clk 0:03:03]} 5...
Be7 {[%clk 0:01:02.2]} 6. Re1 {[%clk 0:03:03.7]} 6... b5 {[%clk 0:01:02.2]} 7.
Bb3 {[%clk 0:03:05.1]} 7... d6 {[%clk 0:01:03.6]} 8. c3 {[%clk 0:03:05.8]} 8...
O-O {[%clk 0:01:05]} 9. h3 {[%clk 0:03:06.3]} 9... Nb8 {[%clk 0:01:05.8]} 10. d4
{[%clk 0:03:06.9]} 10... Nbd7 {[%clk 0:01:07.3]} 11. c4 {[%clk 0:03:08.4]} 11...
c6 {[%clk 0:01:03.8]} 12. a3 {[%clk 0:03:03.4]} 12... Bb7 {[%clk 0:01:00.9]} 13.
Nc3 {[%clk 0:03:04.1]} 13... exd4 {[%clk 0:00:56.4]} 14. Nxd4 {[%clk 0:03:03]}
14... Nc5 {[%clk 0:00:55.3]} 15. Ba2 {[%clk 0:03:02.1]} 15... bxc4 {[%clk
0:00:51.8]} 16. Bxc4 {[%clk 0:03:01.5]} 16... Nfd7 {[%clk 0:00:49.6]} 17. b4
{[%clk 0:02:34.2]} 17... Ne5 {[%clk 0:00:46.2]} 18. Bf1 {[%clk 0:02:35.2]} 18...
Ne6 {[%clk 0:00:45]} 19. Nf5 {[%clk 0:02:31.4]} 19... c5 {[%clk 0:00:43.8]} 20.
Nd5 {[%clk 0:02:28.3]} 20... Bxd5 {[%clk 0:00:44.4]} 21. Qxd5 {[%clk 0:02:23.4]}
21... cxb4 {[%clk 0:00:37.2]} 22. axb4 {[%clk 0:02:25.3]} 22... Nc7 {[%clk
0:00:33.4]} 23. Qd1 {[%clk 0:02:15.9]} 23... Nc6 {[%clk 0:00:32.1]} 24. Bb2
{[%clk 0:02:07.8]} 1-0

[Event "*** Titled Tuesday Blitz"]
[Site "Chess.com"]
[Date "2018.01.02"]
[Round "2"]
[White "1e41-0"]
[Black "IamSchrodingersCat"]
[Result "1-0"]
[WhiteElo "2355"]
[BlackElo "2369"]
[TimeControl "180+2"]
[EndTime "13:19:41 PST"]
[Termination "1e41-0 won by checkmate"]

1. d4 {[%clk 0:03:01.9]} 1... Nf6 {[%clk 0:03:00.2]} 2. c4 {[%clk 0:03:03]} 2...
e5 {[%clk 0:03:01]} 3. dxe5 {[%clk 0:03:03.5]} 3... Ng4 {[%clk 0:03:02.5]} 4.
Bf4 {[%clk 0:03:04.9]} 4... g5 {[%clk 0:03:02.9]} 5. Bg3 {[%clk 0:03:05.5]} 5...
Bg7 {[%clk 0:03:04.4]} 6. h4 {[%clk 0:03:04.8]} 6... Nxe5 {[%clk 0:03:04.4]} 7.
hxg5 {[%clk 0:03:04]} 7... Nxc4 {[%clk 0:02:52.5]} 8. Nc3 {[%clk 0:02:56.6]}
8... Qxg5 {[%clk 0:02:11.5]} 9. e3 {[%clk 0:02:51]} 9... Nxb2 {[%clk 0:02:10.4]}
10. Qc2 {[%clk 0:02:25.8]} 10... Na4 {[%clk 0:02:02.4]} 11. Nb5 {[%clk
0:02:24.1]} 11... Bxa1 {[%clk 0:01:56.2]} 12. Nxc7+ {[%clk 0:02:22.6]} 12... Kf8
{[%clk 0:01:55.6]} 13. Qxa4 {[%clk 0:02:04.6]} 13... Qc5 {[%clk 0:00:45]} 14.
Nxa8 {[%clk 0:01:42.6]} 14... Qc1+ {[%clk 0:00:27.2]} 15. Ke2 {[%clk 0:01:42.6]}
15... Qb2+ {[%clk 0:00:24]} 16. Kf3 {[%clk 0:01:40.3]} 16... b5 {[%clk
0:00:18.3]} 17. Bd6+ {[%clk 0:01:36.8]} 17... Kg7 {[%clk 0:00:11.7]} 18. Qg4+
{[%clk 0:01:37.1]} 18... Kf6 {[%clk 0:00:12]} 19. Rh6# {[%clk 0:01:36.9]} 1-0

[Event "*** Titled Tuesday Blitz"]
[Site "Chess.com"]
[Date "2018.01.02"]
[Round "2"]
[White "jup1978"]
[Black "inegrepus"]
[Result "1/2-1/2"]
[WhiteElo "2205"]
[BlackElo "2121"]
[TimeControl "180+2"]
[EndTime "13:19:49 PST"]
[Termination "Game drawn by agreement"]

1. e4 {[%clk 0:03:01.9]} 1... c5 {[%clk 0:03:00.1]} 2. Nf3 {[%clk 0:03:01.2]}
2... Nc6 {[%clk 0:03:01.1]} 3. Bb5 {[%clk 0:03:02.6]} 3... Na5 {[%clk
0:03:00.9]} 4. O-O {[%clk 0:03:02.1]} 4... a6 {[%clk 0:03:02.2]} 5. Be2 {[%clk
0:03:03.4]} 5... Nf6 {[%clk 0:03:00.4]} 6. Nc3 {[%clk 0:03:03.2]} 6... d5 {[%clk
0:02:58.8]} 7. exd5 {[%clk 0:03:03.4]} 7... Nxd5 {[%clk 0:02:59.6]} 8. d4 {[%clk
0:03:02.4]} 8... e6 {[%clk 0:02:54.1]} 9. Nxd5 {[%clk 0:03:00.3]} 9... Qxd5
{[%clk 0:02:54.8]} 10. dxc5 {[%clk 0:03:01]} 10... Qxd1 {[%clk 0:02:38.6]} 11.
Rxd1 {[%clk 0:03:02.9]} 11... Bxc5 {[%clk 0:02:35.5]} 12. c3 {[%clk 0:03:04.4]}
12... Nc6 {[%clk 0:02:35.6]} 13. b4 {[%clk 0:03:00.7]} 13... Bb6 {[%clk
0:02:33.5]} 14. Bb2 {[%clk 0:03:01.7]} 14... Bd7 {[%clk 0:02:31.3]} 15. a3
{[%clk 0:03:03]} 15... Rd8 {[%clk 0:02:30.9]} 16. c4 {[%clk 0:03:03.9]} 16...
O-O {[%clk 0:02:31.6]} 17. c5 {[%clk 0:03:04.5]} 17... Bc7 {[%clk 0:02:32.8]}
18. Rd2 {[%clk 0:02:59.8]} 18... Bc8 {[%clk 0:02:32.4]} 19. Rad1 {[%clk
0:03:00.6]} 19... Rxd2 {[%clk 0:02:33.4]} 20. Rxd2 {[%clk 0:03:02.5]} 20... Rd8
{[%clk 0:02:35.1]} 21. Rxd8+ {[%clk 0:03:01.9]} 21... Bxd8 {[%clk 0:02:36.2]}
22. Bc3 {[%clk 0:03:02.4]} 22... Bf6 {[%clk 0:02:32]} 23. Bd2 {[%clk 0:02:58.6]}
23... e5 {[%clk 0:02:30.6]} 24. a4 {[%clk 0:02:57.2]} 24... Nd4 {[%clk
0:02:28.8]} 25. Nxd4 {[%clk 0:02:56.8]} 25... exd4 {[%clk 0:02:30.3]} 26. Bf3
{[%clk 0:02:50.4]} 26... Kf8 {[%clk 0:02:30.1]} 27. b5 {[%clk 0:02:50.5]} 27...
axb5 {[%clk 0:02:31.1]} 28. axb5 {[%clk 0:02:52.4]} 28... Ke7 {[%clk 0:02:32.1]}
29. Bb4 {[%clk 0:02:51.3]} 29... Kd8 {[%clk 0:02:31.8]} 30. c6 {[%clk
0:02:46.8]} 30... bxc6 {[%clk 0:02:32.8]} 31. Bxc6 {[%clk 0:02:48.7]} 31... Bd7
{[%clk 0:02:31.8]} 32. Bd5 {[%clk 0:02:36]} 32... Bxb5 {[%clk 0:02:32.1]} 33.
Bxf7 {[%clk 0:02:36.2]} 33... Bg5 {[%clk 0:02:24.6]} 34. g3 {[%clk 0:02:33.7]}
34... Bc1 {[%clk 0:02:23]} 35. Bb3 {[%clk 0:02:29.2]} 35... Be2 {[%clk
0:02:22.6]} 36. f4 {[%clk 0:02:26.6]} 36... Be3+ {[%clk 0:02:20.6]} 37. Kg2
{[%clk 0:02:26.6]} 37... d3 {[%clk 0:02:21.8]} 38. Bc4 {[%clk 0:02:25.3]} 38...
g6 {[%clk 0:02:09.4]} 39. Be1 {[%clk 0:02:20.8]} 39... d2 {[%clk 0:02:07.7]} 40.
Bxd2 {[%clk 0:02:20.7]} 40... Bxd2 {[%clk 0:01:58.9]} 41. Bxe2 {[%clk
0:02:18.5]} 41... Ke7 {[%clk 0:02:00.1]} 42. Kf3 {[%clk 0:02:12.5]} 42... Kf6
{[%clk 0:02:01]} 43. Bd3 {[%clk 0:02:13.4]} 43... h5 {[%clk 0:02:01.7]} 44. h3
{[%clk 0:02:12.2]} 44... Bc3 {[%clk 0:02:02.3]} 45. g4 {[%clk 0:02:09.7]} 45...
hxg4+ {[%clk 0:02:02.7]} 46. hxg4 {[%clk 0:02:11.6]} 46... g5 {[%clk 0:01:59.6]}
47. fxg5+ {[%clk 0:02:10.4]} 47... Kxg5 {[%clk 0:02:00.4]} 48. Bf5 {[%clk
0:02:04.5]} 48... Bb2 {[%clk 0:02:00.7]} 1/2-1/2

[Event "*** Titled Tuesday Blitz"]
[Site "Chess.com"]
[Date "2018.01.02"]
[Round "2"]
[White "abruptum"]
[Black "hermionegrangermagic"]
[Result "0-1"]
[WhiteElo "2307"]
[BlackElo "2415"]
[TimeControl "180+2"]
[EndTime "13:19:52 PST"]
[Termination "hermionegrangermagic won by resignation"]

1. d4 {[%clk 0:03:01.9]} 1... d5 {[%clk 0:02:58]} 2. c4 {[%clk 0:03:03]} 2... e6
{[%clk 0:02:58.9]} 3. Nc3 {[%clk 0:03:04.1]} 3... Nf6 {[%clk 0:02:59.8]} 4. cxd5
{[%clk 0:03:04.9]} 4... exd5 {[%clk 0:03:00.4]} 5. Bg5 {[%clk 0:03:05.2]} 5...
c6 {[%clk 0:02:59.2]} 6. Qc2 {[%clk 0:03:05.3]} 6... Be7 {[%clk 0:03:00.4]} 7.
e3 {[%clk 0:03:04.8]} 7... O-O {[%clk 0:03:01.2]} 8. Bd3 {[%clk 0:03:05.7]} 8...
h6 {[%clk 0:03:01.6]} 9. Bh4 {[%clk 0:03:05.9]} 9... Re8 {[%clk 0:03:02.7]} 10.
Nf3 {[%clk 0:03:06.2]} 10... Ne4 {[%clk 0:03:03.7]} 11. Bxe7 {[%clk 0:03:05]}
11... Qxe7 {[%clk 0:03:04.9]} 12. O-O {[%clk 0:03:05.6]} 12... Bf5 {[%clk
0:03:05.6]} 13. Nd2 {[%clk 0:02:59.6]} 13... Nd7 {[%clk 0:03:03.4]} 14. Bxe4
{[%clk 0:02:51.9]} 14... Bxe4 {[%clk 0:03:02.6]} 15. Ncxe4 {[%clk 0:02:48.6]}
15... dxe4 {[%clk 0:03:04.5]} 16. b4 {[%clk 0:02:47.4]} 16... Qxb4 {[%clk
0:03:01.7]} 17. Rab1 {[%clk 0:02:47.7]} 17... Qd6 {[%clk 0:03:01.7]} 18. Rxb7
{[%clk 0:02:48.2]} 18... c5 {[%clk 0:03:02.5]} 19. Nc4 {[%clk 0:02:22.6]} 19...
Qc6 {[%clk 0:03:02.2]} 20. Na5 {[%clk 0:02:23.1]} 20... Qd5 {[%clk 0:02:57.8]}
21. Qa4 {[%clk 0:02:12]} 21... Nb6 {[%clk 0:02:53.2]} 22. Qc6 {[%clk 0:02:08.8]}
22... Qxc6 {[%clk 0:02:50.2]} 23. Nxc6 {[%clk 0:02:08.8]} 23... cxd4 {[%clk
0:02:51.4]} 24. Nxd4 {[%clk 0:02:09.1]} 24... Reb8 {[%clk 0:02:50.1]} 25. Re7
{[%clk 0:01:58.1]} 25... Re8 {[%clk 0:02:50.8]} 26. Rb7 {[%clk 0:01:59.1]} 26...
Reb8 {[%clk 0:02:51.7]} 27. Re7 {[%clk 0:02:00]} 27... Re8 {[%clk 0:02:50.3]}
28. Rc7 {[%clk 0:02:00.9]} 28... Rec8 {[%clk 0:02:50.2]} 29. Rfc1 {[%clk
0:02:02.4]} 29... Rxc7 {[%clk 0:02:50.7]} 30. Rxc7 {[%clk 0:02:04.3]} 30... Rc8
{[%clk 0:02:51.8]} 31. Rxc8+ {[%clk 0:02:04.6]} 31... Nxc8 {[%clk 0:02:53.7]}
32. Kf1 {[%clk 0:01:59.2]} 32... Kf8 {[%clk 0:02:54.8]} 33. Ke1 {[%clk
0:02:00.5]} 33... Ke7 {[%clk 0:02:56]} 34. Kd2 {[%clk 0:02:00.5]} 34... Kd6
{[%clk 0:02:57]} 35. Nf5+ {[%clk 0:02:01.5]} 35... Ke5 {[%clk 0:02:57.5]} 36.
Nxg7 {[%clk 0:02:02.3]} 36... Nd6 {[%clk 0:02:58.5]} 37. g4 {[%clk 0:02:00.8]}
37... Kf6 {[%clk 0:02:55.5]} 38. Nh5+ {[%clk 0:02:01.7]} 38... Kg5 {[%clk
0:02:56.7]} 39. h3 {[%clk 0:02:01.3]} 39... f5 {[%clk 0:02:56.5]} 40. Ke2 {[%clk
0:01:47.7]} 40... fxg4 {[%clk 0:02:57.4]} 41. hxg4 {[%clk 0:01:49.6]} 41... Kxg4
{[%clk 0:02:58.8]} 42. Nf6+ {[%clk 0:01:49.6]} 42... Kg5 {[%clk 0:03:00]} 43.
Nd5 {[%clk 0:01:48.3]} 43... h5 {[%clk 0:03:01.3]} 44. Nf4 {[%clk 0:01:45.5]}
44... h4 {[%clk 0:03:02.4]} 45. f3 {[%clk 0:01:46.6]} 45... Kf5 {[%clk
0:02:54.1]} 46. Kf2 {[%clk 0:01:41.7]} 46... a5 {[%clk 0:02:52.6]} 47. Ke2
{[%clk 0:01:42.1]} 47... a4 {[%clk 0:02:53.3]} 48. Nh3 {[%clk 0:01:41.3]} 48...
a3 {[%clk 0:02:54.1]} 49. f4 {[%clk 0:01:40.8]} 49... Kg4 {[%clk 0:02:53.6]} 50.
Nf2+ {[%clk 0:01:41.8]} 50... Kg3 {[%clk 0:02:54.6]} 51. Ke1 {[%clk 0:01:34.3]}
51... Kg2 {[%clk 0:02:53.9]} 52. Ke2 {[%clk 0:01:35.3]} 52... h3 {[%clk
0:02:55.2]} 53. Ng4 {[%clk 0:01:35.9]} 53... h2 {[%clk 0:02:54.7]} 54. Nxh2
{[%clk 0:01:36.8]} 54... Kxh2 {[%clk 0:02:56.6]} 55. Kd2 {[%clk 0:01:38.7]}
55... Kg3 {[%clk 0:02:55.8]} 56. Kc3 {[%clk 0:01:40.6]} 56... Kf3 {[%clk
0:02:57.1]} 57. Kd4 {[%clk 0:01:41.7]} 57... Nf5+ {[%clk 0:02:57.2]} 58. Ke5
{[%clk 0:01:43]} 58... Nxe3 {[%clk 0:02:57.5]} 0-1

[Event "*** Titled Tuesday Blitz"]
[Site "Chess.com"]
[Date "2018.01.02"]
[Round "2"]
[White "Babbelbox"]
[Black "tomsishere"]
[Result "1-0"]
[WhiteElo "2420"]
[BlackElo "2258"]
[TimeControl "180+2"]
[EndTime "13:20:09 PST"]
[Termination "Babbelbox won by resignation"]

1. d4 {[%clk 0:02:55.9]} 1... Nf6 {[%clk 0:02:59.7]} 2. c4 {[%clk 0:02:57.4]}
2... g6 {[%clk 0:03:00.1]} 3. Nc3 {[%clk 0:02:56.6]} 3... d5 {[%clk 0:03:00.8]}
4. cxd5 {[%clk 0:02:57.6]} 4... Nxd5 {[%clk 0:03:01.6]} 5. e4 {[%clk 0:02:59.3]}
5... Nxc3 {[%clk 0:03:02.5]} 6. bxc3 {[%clk 0:03:01.2]} 6... Bg7 {[%clk
0:03:03.7]} 7. Nf3 {[%clk 0:03:02.9]} 7... c5 {[%clk 0:03:04.5]} 8. Rb1 {[%clk
0:03:04.3]} 8... O-O {[%clk 0:03:03.3]} 9. Be2 {[%clk 0:03:03.7]} 9... cxd4
{[%clk 0:03:03.6]} 10. cxd4 {[%clk 0:03:05.6]} 10... Qa5+ {[%clk 0:03:04.1]} 11.
Bd2 {[%clk 0:03:07.2]} 11... Qxa2 {[%clk 0:03:04.8]} 12. O-O {[%clk 0:03:08.4]}
12... Bg4 {[%clk 0:03:04.9]} 13. Rxb7 {[%clk 0:03:09.8]} 13... Bxf3 {[%clk
0:03:02.2]} 14. Bxf3 {[%clk 0:03:11.2]} 14... Bxd4 {[%clk 0:03:02.8]} 15. e5
{[%clk 0:03:12.7]} 15... Na6 {[%clk 0:03:01.2]} 16. Be3 {[%clk 0:03:12.2]} 16...
Bxe3 {[%clk 0:02:55.3]} 17. fxe3 {[%clk 0:03:14.1]} 17... Rad8 {[%clk
0:02:55.3]} 18. Qa1 {[%clk 0:03:06.3]} 18... Qxa1 {[%clk 0:02:46.1]} 19. Rxa1
{[%clk 0:03:08.2]} 19... Nc5 {[%clk 0:02:43.8]} 20. Rxe7 {[%clk 0:02:42.5]}
20... a6 {[%clk 0:02:27.8]} 21. Ra5 {[%clk 0:02:33.6]} 21... Rc8 {[%clk
0:02:18.9]} 22. Bd5 {[%clk 0:02:34.4]} 22... Nd3 {[%clk 0:01:48.6]} 23. h4
{[%clk 0:02:17.2]} 23... Rc1+ {[%clk 0:01:40.5]} 24. Kh2 {[%clk 0:02:17.2]}
24... Rc5 {[%clk 0:01:41]} 25. Rxc5 {[%clk 0:02:08.9]} 25... Nxc5 {[%clk
0:01:41.8]} 26. Ra7 {[%clk 0:02:06.8]} 26... Kg7 {[%clk 0:01:23.7]} 27. e6
{[%clk 0:02:07.4]} 27... Kf6 {[%clk 0:01:20.7]} 28. exf7 {[%clk 0:01:59.5]}
28... Ke5 {[%clk 0:01:12.2]} 29. Bc4 {[%clk 0:01:52]} 29... Ke4 {[%clk 0:00:41]}
30. Re7+ {[%clk 0:01:47.1]} 30... Kf5 {[%clk 0:00:40.5]} 31. Re8 {[%clk
0:01:46.7]} 31... Nd7 {[%clk 0:00:35.6]} 32. Be6+ {[%clk 0:01:46.3]} 1-0

[Event "*** Titled Tuesday Blitz"]
[Site "Chess.com"]
[Date "2018.01.02"]
[Round "2"]
[White "GMAkobianSTL"]
[Black "Blitzstream"]
[Result "1-0"]
[WhiteElo "2667"]
[BlackElo "2489"]
[TimeControl "180+2"]
[EndTime "13:20:22 PST"]
[Termination "GMAkobianSTL won by checkmate"]

1. d4 {[%clk 0:03:01.9]} 1... e5 {[%clk 0:03:00.6]} 2. dxe5 {[%clk 0:03:02.4]}
2... Nc6 {[%clk 0:03:01.4]} 3. Nf3 {[%clk 0:03:03.1]} 3... d6 {[%clk 0:03:02.4]}
4. Bf4 {[%clk 0:03:00.9]} 4... Bg4 {[%clk 0:02:03.7]} 5. exd6 {[%clk 0:03:01.2]}
5... cxd6 {[%clk 0:02:03.4]} 6. e3 {[%clk 0:03:01.1]} 6... Qb6 {[%clk
0:02:02.3]} 7. Qc1 {[%clk 0:02:55.8]} 7... O-O-O {[%clk 0:02:00.4]} 8. Be2
{[%clk 0:02:55.3]} 8... h5 {[%clk 0:01:59.2]} 9. O-O {[%clk 0:02:55.5]} 9... g5
{[%clk 0:01:57.6]} 10. Bxg5 {[%clk 0:02:55.1]} 10... Re8 {[%clk 0:01:57.7]} 11.
Nc3 {[%clk 0:02:54]} 11... Bg7 {[%clk 0:01:56.4]} 12. Rd1 {[%clk 0:02:51.1]}
12... Qa5 {[%clk 0:01:45.5]} 13. Nd5 {[%clk 0:02:48.2]} 13... Ne5 {[%clk
0:01:23.5]} 14. b4 {[%clk 0:02:42.8]} 14... Qa4 {[%clk 0:01:17.5]} 15. Nxe5
{[%clk 0:02:37.7]} 15... Rxe5 {[%clk 0:01:11.1]} 16. Bxg4+ {[%clk 0:02:35]}
16... hxg4 {[%clk 0:01:10.5]} 17. Bf4 {[%clk 0:02:36.1]} 17... Reh5 {[%clk
0:01:02]} 18. c4 {[%clk 0:02:24.8]} 18... Bxa1 {[%clk 0:00:18.3]} 19. Qxa1
{[%clk 0:02:25]} 19... Qc2 {[%clk 0:00:19.7]} 20. Rc1 {[%clk 0:02:23.4]} 20...
Qh7 {[%clk 0:00:19.7]} 21. Rd1 {[%clk 0:01:55]} 21... Rxh2 {[%clk 0:00:19.7]}
22. Bxh2 {[%clk 0:01:55.9]} 22... Qxh2+ {[%clk 0:00:21.3]} 23. Kf1 {[%clk
0:01:57.5]} 23... Qh1+ {[%clk 0:00:22.7]} 24. Ke2 {[%clk 0:01:58.3]} 24... Qh5
{[%clk 0:00:22.2]} 25. Qd4 {[%clk 0:01:57.1]} 25... g3+ {[%clk 0:00:19.8]} 26.
f3 {[%clk 0:01:58.1]} 26... Qh2 {[%clk 0:00:19.1]} 27. Kd3 {[%clk 0:01:58.1]}
27... b6 {[%clk 0:00:14.7]} 28. Rd2 {[%clk 0:01:55.3]} 28... Qh1 {[%clk
0:00:15.1]} 29. Kc2 {[%clk 0:01:55.8]} 29... Rh2 {[%clk 0:00:13.9]} 30. Qg4+
{[%clk 0:01:52.6]} 30... Kb7 {[%clk 0:00:13.6]} 31. Qxg8 {[%clk 0:01:53.4]}
31... Rxg2 {[%clk 0:00:07.9]} 32. Qxf7+ {[%clk 0:01:54.4]} 32... Kb8 {[%clk
0:00:09.3]} 33. Qc7+ {[%clk 0:01:54.4]} 33... Ka8 {[%clk 0:00:10.6]} 34. Qc8#
{[%clk 0:01:55.7]} 1-0

[Event "*** Titled Tuesday Blitz"]
[Site "Chess.com"]
[Date "2018.01.02"]
[Round "2"]
[White "Saitama_Hero"]
[Black "DrZeiss"]
[Result "1-0"]
[WhiteElo "2169"]
[BlackElo "2160"]
[TimeControl "180+2"]
[EndTime "13:20:52 PST"]
[Termination "Saitama_Hero won by resignation"]

1. d4 {[%clk 0:03:01.9]} 1... Nf6 {[%clk 0:02:59.5]} 2. Bg5 {[%clk 0:03:00.7]}
2... d5 {[%clk 0:02:57.2]} 3. Bxf6 {[%clk 0:02:59.9]} 3... exf6 {[%clk
0:02:57.6]} 4. e3 {[%clk 0:03:01.8]} 4... Bd6 {[%clk 0:02:57.5]} 5. Bd3 {[%clk
0:02:58.6]} 5... f5 {[%clk 0:02:54.2]} 6. Nf3 {[%clk 0:02:56.6]} 6... f4 {[%clk
0:02:45.1]} 7. O-O {[%clk 0:02:48.1]} 7... O-O {[%clk 0:02:35.8]} 8. e4 {[%clk
0:02:35.7]} 8... dxe4 {[%clk 0:02:31.6]} 9. Bxe4 {[%clk 0:02:37.6]} 9... Nd7
{[%clk 0:02:24]} 10. c4 {[%clk 0:02:36.8]} 10... Nf6 {[%clk 0:02:20.4]} 11. Bd3
{[%clk 0:02:38.1]} 11... c6 {[%clk 0:02:13.9]} 12. h3 {[%clk 0:02:38.9]} 12...
h6 {[%clk 0:02:05]} 13. Nc3 {[%clk 0:02:38.8]} 13... Be6 {[%clk 0:01:59.3]} 14.
Rc1 {[%clk 0:02:32.1]} 14... Re8 {[%clk 0:01:54.1]} 15. b3 {[%clk 0:02:32.4]}
15... b6 {[%clk 0:01:44.1]} 16. Bb1 {[%clk 0:02:32.2]} 16... Rc8 {[%clk
0:01:39.6]} 17. Qd3 {[%clk 0:02:31.9]} 17... g6 {[%clk 0:01:33.3]} 18. Rfe1
{[%clk 0:02:32.2]} 18... Bf5 {[%clk 0:01:30]} 19. Qd2 {[%clk 0:02:30.7]} 19...
Bxb1 {[%clk 0:01:29]} 20. Rxb1 {[%clk 0:02:32.6]} 20... Qd7 {[%clk 0:01:22]} 21.
Rbd1 {[%clk 0:02:30.7]} 21... Qf5 {[%clk 0:01:22]} 22. Qd3 {[%clk 0:02:23]}
22... Qa5 {[%clk 0:01:17.9]} 23. Rxe8+ {[%clk 0:01:59]} 23... Rxe8 {[%clk
0:01:16.8]} 24. d5 {[%clk 0:02:00.7]} 24... Bb4 {[%clk 0:01:08.9]} 25. Ne2
{[%clk 0:01:58.2]} 25... g5 {[%clk 0:00:59.7]} 26. dxc6 {[%clk 0:01:52.1]} 26...
Qxa2 {[%clk 0:00:50.6]} 27. Ned4 {[%clk 0:01:53.6]} 27... Ne4 {[%clk 0:00:48]}
28. Nc2 {[%clk 0:01:47.6]} 28... Bc5 {[%clk 0:00:46.1]} 29. Nfd4 {[%clk
0:01:44.1]} 29... Nd6 {[%clk 0:00:34.1]} 30. b4 {[%clk 0:01:37]} 30... Qxc2
{[%clk 0:00:17.7]} 31. Nxc2 {[%clk 0:01:33.4]} 31... Bxf2+ {[%clk 0:00:16]} 32.
Kxf2 {[%clk 0:01:33.7]} 32... Re2+ {[%clk 0:00:16.7]} 33. Kxe2 {[%clk
0:01:34.1]} 33... Ne4 {[%clk 0:00:16.9]} 34. Qxe4 {[%clk 0:01:35]} 1-0